bitfinex/quotes_SOLUSD_20211001
["timestamp","ask_amount","ask_price","bid_price","bid_amount"]
[1633061239073,28.90324201,139.75,139.68,1.9913772]
[1633061241478,3.02,139.77,139.68,1.9913772]
[1633061241677,3.02,139.79,139.69,1.97416795]
[1633061241877,3.02,139.79,139.7,1.96564858]
[1633061242078,3.02,139.79,139.71,1.94818757]
[1633061242278,3.02,139.79,139.7,1.94405019]
[1633061242476,3.02,139.79,139.71,1.93376196]
[1633061242678,27.37618904,139.78,139.71,1.93376196]
[1633061246283,27.37618904,139.78,139.72,1.92736564]
[1633061247781,27.37618904,139.78,139.71,1.95189116]
[1633061249088,27.37618904,139.78,139.72,1.95155256]
[1633061249284,27.37618904,139.78,139.71,1.94558722]
[1633061250187,27.37618904,139.78,139.72,1.93770338]
[1633061253388,33.01161865,139.78,139.72,1.93770338]
[1633061254390,33.01161865,139.78,139.73,1.93987907]
[1633061254589,57.42383123,139.78,139.73,1.93987907]
[1633061254790,83.97049542,139.78,139.73,1.93987907]
[1633061255895,3.02,139.77,139.73,1.93987907]
[1633061257291,3.02,139.79,139.73,1.93987907]
[1633061257490,3.02,139.79,139.74,1.92745047]
[1633061257691,9.46297357,139.81,139.74,1.92745047]
[1633061257891,9.46297357,139.81,139.75,1.91950928]
[1633061258094,30.14665928,139.8,139.75,1.91950928]
[1633061258292,30.14665928,139.8,139.73,1.93972492]
[1633061258492,5.63542961,139.79,139.71,1.9545329]
[1633061258693,12.48500628,139.78,139.7,1.95896668]
[1633061258892,12.48500628,139.78,139.69,1.96550914]
[1633061258893,17.9296976,139.77,139.69,1.96550914]
[1633061259095,26.58512721,139.77,139.69,1.96550914]
[1633061259294,30.63606845,139.76,139.69,1.96550914]
[1633061259693,5.63542961,139.75,139.68,1.97547084]
[1633061259893,8.65542961,139.75,139.68,1.97547084]
[1633061260095,8.65542961,139.75,139.69,1.97111864]
[1633061261097,5.63542961,139.74,139.69,1.97111864]
[1633061261293,8.65542961,139.74,139.67,1.98195119]
[1633061261694,5.63542961,139.73,139.67,1.98195119]
[1633061261896,26.81124489,139.72,139.67,1.98195119]
[1633061262295,5.13542961,139.71,139.67,1.98195119]
[1633061263597,5.13542961,139.71,139.66,1.98398826]
[1633061263797,8.15542961,139.71,139.67,1.98132687]
[1633061264197,8.15542961,139.71,139.66,1.98211135]
[1633061266600,5.63542961,139.7,139.66,1.98211135]
[1633061266801,5.63542961,139.7,139.65,1.98988602]
[1633061267403,24.97014261,139.69,139.64,1.99676146]
[1633061267801,5.63542961,139.68,139.64,1.99676146]
[1633061268400,5.63542961,139.68,139.63,1.99895092]
[1633061269200,24.97014261,139.69,139.64,2.03287848]
[1633061271500,24.97014261,139.69,139.61,8.29437145]
[1633061271501,24.97014261,139.69,139.63,2.06376478]
[1633061274504,30.60557222,139.69,139.62,2.05721834]
[1633061280306,30.60557222,139.69,139.61,2.01342559]
[1633061281307,30.60557222,139.69,139.62,2.00865317]
[1633061282914,24.97014261,139.69,139.64,1.98235799]
[1633061283113,31.15555308,139.71,139.64,1.98235799]
[1633061283513,3.02,139.71,139.64,1.98235799]
[1633061283913,3.02,139.71,139.65,1.96876352]
[1633061284114,32.48533258,139.71,139.65,1.96876352]
[1633061284313,29.46533258,139.71,139.65,1.96876352]
[1633061284533,29.46533258,139.71,139.66,1.96942847]
[1633061285534,29.46533258,139.71,139.67,1.97063503]
[1633061287534,3.02,139.73,139.68,1.97035487]
[1633061287939,3.02,139.75,139.69,1.97265758]
[1633061288534,28.63190931,139.75,139.69,1.97265758]
[1633061289035,28.63190931,139.75,139.7,1.96967269]
[1633061289437,34.26733892,139.75,139.69,1.97422732]
[1633061291039,5.63542961,139.75,139.69,1.97422732]
[1633061291239,8.67672721,139.77,139.71,1.95330779]
[1633061291440,9.46500628,139.78,139.72,1.9487154]
[1633061291642,9.46500628,139.78,139.71,22.531]
[1633061291643,9.46500628,139.78,139.73,1.9376176]
[1633061291840,9.46500628,139.78,139.72,1.93956427]
[1633061292040,23.32915425,139.79,139.72,1.93956427]
[1633061292641,23.32915425,139.79,139.73,1.93840732]
[1633061293043,23.32915425,139.79,139.72,1.93808584]
[1633061295045,23.32915425,139.79,139.71,27.49604525]
[1633061295648,12.48229619,139.82,139.71,27.49604525]
[1633061296044,9.46229619,139.82,139.71,27.49604525]
[1633061296246,9.46229619,139.82,139.73,1.93308515]
[1633061296446,3.02,139.84,139.73,4.95308515]
[1633061296644,26.81510503,139.83,139.73,4.95308515]
[1633061296844,32.45053464,139.83,139.73,3.02]
[1633061298546,5.63542961,139.82,139.73,3.02]
[1633061302551,26.81510503,139.83,139.73,3.02]
[1633061302749,26.81510503,139.83,139.73,25.842]
[1633061302951,8.65542961,139.84,139.73,25.842]
[1633061305651,60.98652861,139.84,139.73,25.842]
[1633061307455,60.98652861,139.84,139.73,4.99537707]
[1633061307855,60.98652861,139.84,139.73,3.02]
[1633061309155,60.98652861,139.84,139.73,5.001984]
[1633061309357,60.98652861,139.84,139.74,1.97990056]
[1633061312959,60.98652861,139.84,139.75,2.00154696]
[1633061313359,33.78986442,139.84,139.75,5.02154696]
[1633061314760,33.78986442,139.84,139.76,1.99640441]
[1633061316062,3.02,139.84,139.76,1.99640441]
[1633061317863,3.02,139.84,139.77,1.99601687]
[1633061318865,3.02,139.84,139.78,2.00960783]
[1633061319667,3.02,139.84,139.79,2.00833318]
[1633061319866,2.52,139.84,139.79,2.00833318]
[1633061320869,2.52,139.84,139.8,2.00545984]
[1633061324570,8.15542961,139.84,139.8,2.00545984]
[1633061324773,8.15542961,139.84,139.79,2.02071127]
[1633061324970,8.15542961,139.84,139.78,2.02229233]
[1633061327473,8.15542961,139.84,139.79,2.02106939]
[1633061328072,2.52,139.84,139.79,2.02106939]
[1633061328271,2.52,139.84,139.8,2.01649087]
[1633061328471,18.11501725,139.86,139.8,2.01649087]
[1633061329876,30.32332613,139.85,139.8,2.01649087]
[1633061330775,30.32332613,139.85,139.81,2.07002728]
[1633061330973,30.32332613,139.85,139.8,2.07050491]
[1633061331174,30.32332613,139.85,139.81,2.07050059]
[1633061331974,18.11501725,139.86,139.81,2.07050059]
[1633061332174,12.47958764,139.86,139.81,2.07050059]
[1633061332377,3.02,139.86,139.83,2.0561012]
[1633061333174,78.915,139.87,139.83,2.0561012]
[1633061333374,78.915,139.87,139.84,2.03924687]
[1633061334374,9.72911423,139.89,139.84,2.03924687]
[1633061334574,37.31693031,139.89,139.84,2.03924687]
[1633061334775,9.72911423,139.89,139.84,2.03924687]
[1633061334981,3.02,139.9,139.84,2.03924687]
[1633061335175,2.31854081,139.91,139.84,2.03924687]
[1633061335575,2.31854081,139.91,139.85,2.03047687]
[1633061335975,2.31854081,139.91,139.84,2.02934947]
[1633061336977,6.75609342,139.98,139.95,4.54807]
[1633061337176,14.96525366,140.0,139.95,4.54807]
[1633061337177,3.02,140.0,139.95,4.54807]
[1633061337377,12.46876896,140.02,139.95,4.54807]
[1633061337976,9.44876896,140.02,139.95,4.54807]
[1633061338178,31.01996582,140.04,139.95,4.54807]
[1633061338376,27.89982607,140.01,139.95,4.54807]
[1633061338577,3.02,140.04,139.95,4.54807]
[1633061339578,29.63400225,140.04,139.95,4.54807]
[1633061342783,26.61400225,140.04,139.95,7.56807]
[1633061345184,48.16100225,140.04,139.95,7.56807]
[1633061345783,3.02,140.03,139.95,4.54807]
[1633061349686,441.87015799,140.06,139.95,7.56807]
[1633061350088,27.5007361,140.05,139.95,7.56807]
[1633061351688,27.0007361,140.05,139.95,7.56807]
[1633061351887,50.9067361,140.05,139.95,7.56807]
[1633061352088,53.9267361,140.05,139.95,7.56807]
[1633061359498,50.9067361,140.05,139.95,7.56807]
[1633061359898,53.9267361,140.05,139.95,7.56807]
[1633061364601,82.71259613,140.05,139.95,7.56807]
[1633061365601,100.58269613,140.05,139.95,4.54807]
[1633061365802,106.21812574,140.05,139.95,4.54807]
[1633061366003,100.58269613,140.05,139.95,4.54807]
[1633061366206,9.44741836,140.04,139.95,4.54807]
[1633061366603,38.23327839,140.04,139.95,6.45560553]
[1633061366803,28.78586003,140.04,139.97,1.90606421]
[1633061367002,28.78586003,140.04,139.98,1.90225557]
[1633061367204,28.78586003,140.04,139.99,0.0212976]
[1633061367403,9.44606815,140.06,140.03,1.86421609]
[1633061367604,0.10808364,140.08,140.03,3.68618065]
[1633061367803,0.10808364,140.08,140.07,1.83183698]
[1633061368202,0.10808364,140.08,140.04,3.67681732]
[1633061368604,0.10808364,140.08,140.05,3.64319109]
[1633061369208,0.10808364,140.08,140.06,3.6074495]
[1633061369604,0.10808364,140.08,140.06,11.87536933]
[1633061370005,0.10808364,140.08,140.06,8.26791983]
[1633061371204,0.10808364,140.08,140.07,1.80613349]
[1633061371407,0.10808364,140.08,140.05,3.02]
[1633061372006,0.10808364,140.08,140.07,1.80375955]
[1633061373006,0.10808364,140.08,140.06,1.81072181]
[1633061373213,0.10808364,140.08,140.07,3.02]
[1633061375309,0.10808364,140.08,140.07,4.82348266]
[1633061378111,0.10808364,140.08,140.07,3.02]
[1633061379910,0.10808364,140.08,140.07,4.7842347]
[1633061380311,0.10808364,140.08,140.07,3.02]
[1633061381813,0.10808364,140.08,140.05,3.02]
[1633061385517,0.00808364,140.08,140.05,3.02]
[1633061385719,0.00808364,140.08,140.06,1.74693623]
[1633061385921,0.00808364,140.08,140.07,4.76534578]
[1633061386126,0.00808364,140.08,140.07,3.02]
[1633061387832,0.00808364,140.08,140.07,4.73773187]
[1633061388432,0.00808364,140.08,140.07,3.02]
[1633061389635,0.00808364,140.08,140.07,11.28472612]
[1633061389833,0.00808364,140.08,140.07,3.02]
[1633061391135,0.00808364,140.08,140.07,4.73515049]
[1633061392538,0.00808364,140.08,140.07,34.73515049]
[1633061392738,0.00808364,140.08,140.07,63.02]
[1633061394538,0.00808364,140.08,140.07,74.6612752]
[1633061394939,0.00808364,140.08,140.07,76.91923581]
[1633061396140,0.00808364,140.08,140.07,112.74923581]
[1633061396539,0.00808364,140.08,140.07,177.89916718]
[1633061396941,0.00808364,140.08,140.07,190.5267589]
[1633061397140,0.00808364,140.08,140.07,195.551931]
[1633061397740,0.00808364,140.08,140.07,162.28162461]
[1633061397941,0.00808364,140.08,140.07,270.961931]
[1633061398141,0.00808364,140.08,140.07,284.87367717]
[1633061400244,0.00808364,140.08,140.07,289.87199632]
[1633061401843,0.00808364,140.08,140.07,277.2444046]
[1633061402244,0.00808364,140.08,140.07,289.91208367]
[1633061402445,0.00808364,140.08,140.07,277.2444046]
[1633061402843,0.00808364,140.08,140.07,289.99304395]
[1633061403046,0.00808364,140.08,140.07,242.24608545]
[1633061403244,0.00808364,140.08,140.07,147.09615408]
[1633061405851,0.00808364,140.08,140.07,122.5238062]
[1633061406453,0.00808364,140.08,140.07,206.16223369]
[1633061406653,0.00808364,140.08,140.07,237.94004164]
[1633061407475,0.00808364,140.08,140.07,273.05556174]
[1633061407654,0.00808364,140.08,140.07,303.05556174]
[1633061408856,0.00808364,140.08,140.07,791.89408144]
[1633061409459,0.00808364,140.08,140.07,786.77856134]
[1633061412059,0.02088,140.23,140.07,860.97134982]
[1633061412263,0.02088,140.25,140.17,1.72082063]
[1633061412458,0.02088,140.28,140.18,3.02]
[1633061412859,0.02088,140.28,140.18,4.74206775]
[1633061414058,0.02088,140.28,140.19,1.72030224]
[1633061414259,2.54088,140.29,140.19,4.74030224]
[1633061414860,2.54088,140.29,140.19,3.02]
[1633061415261,2.54088,140.29,140.19,4.74158435]
[1633061416062,2.54088,140.29,140.19,78.62818435]
[1633061416659,12.7199602,140.31,140.19,78.62818435]
[1633061416861,12.7199602,140.31,140.2,1.733406]
[1633061417061,12.7199602,140.31,140.21,3.02]
[1633061417561,29.11665145,140.3,140.21,3.02]
[1633061420966,28.61665145,140.3,140.21,3.02]
[1633061421164,12.7199602,140.31,140.21,3.02]
[1633061421366,3.02,140.31,140.21,3.02]
[1633061422165,25.28578329,140.31,140.21,3.02]
[1633061422692,25.28578329,140.31,140.21,4.73807189]
[1633061423089,25.28578329,140.31,140.21,3.02]
[1633061423290,25.28578329,140.31,140.2,1.72666113]
[1633061423291,1.71807189,140.21,140.2,1.72666113]
[1633061423490,25.65304598,140.2,140.18,178.39382823]
[1633061423689,25.65304598,140.2,140.16,3.02]
[1633061424691,25.65304598,140.2,140.15,60.0]
[1633061425491,25.65304598,140.2,140.15,30.0]
[1633061425895,25.65304598,140.2,140.12,3.02]
[1633061432596,34.30847559,140.2,140.1,0.0421776]
[1633061433397,53.07447559,140.2,140.07,3.61390639]
[1633061433597,81.03576988,140.2,140.06,3.63869493]
[1633061433796,25.23242365,140.19,140.06,8.26710644]
[1633061433999,23.8000693,140.17,140.05,0.0421776]
[1633061434202,3.02,140.16,140.04,11.92874166]
[1633061434401,8.65542961,140.16,140.04,11.92874166]
[1633061434801,21.71162262,140.14,140.04,11.92874166]
[1633061434998,40.56862262,140.14,140.04,11.92874166]
[1633061435600,21.47242961,140.14,140.05,6.65967121]
[1633061435803,3.02,140.2,140.07,3.6027156]
[1633061435998,3.02,140.2,140.09,3.57679646]
[1633061436197,3.02,140.2,140.09,14.90325353]
[1633061436397,3.02,140.2,140.1,0.0421776]
[1633061436599,27.92940402,140.19,140.09,3.0621776]
[1633061437201,27.92940402,140.19,140.09,0.0421776]
[1633061437397,3.02,140.18,140.08,0.0421776]
[1633061437601,3.02,140.18,140.08,8.30781433]
[1633061437798,3.02,140.18,140.09,0.0421776]
[1633061437998,3.02,140.18,140.08,0.0421776]
[1633061439399,3.02,140.18,140.07,3.02]
[1633061440201,82.9035,140.18,140.07,3.02]
[1633061440601,103.0815,140.18,140.07,3.02]
[1633061441800,30.20668956,140.16,140.07,3.02]
[1633061442501,33.22668956,140.16,140.05,3.0621776]
[1633061447606,32.72668956,140.16,140.05,3.0621776]
[1633061448306,32.72668956,140.16,140.06,8.26609852]
[1633061448506,32.72668956,140.16,140.06,11.90757902]
[1633061448707,29.70668956,140.16,140.07,3.02]
[1633061448907,29.70668956,140.16,140.07,6.6516071]
[1633061449106,29.70668956,140.16,140.07,14.9167933]
[1633061449305,29.70668956,140.16,140.07,3.02]
[1633061449906,29.70668956,140.16,140.08,8.26541121]
[1633061450305,29.70668956,140.16,140.07,3.02]
[1633061450709,29.70668956,140.16,140.08,8.26574103]
[1633061452808,29.70668956,140.16,140.08,11.96056721]
[1633061453808,29.70668956,140.16,140.09,3.72153364]
[1633061454809,29.70668956,140.16,140.11,3.70424786]
[1633061456010,3.02,140.18,140.11,3.70424786]
[1633061456411,9.43662748,140.2,140.12,3.69420768]
[1633061456612,1.71807189,140.21,140.14,3.65892229]
[1633061456811,1.71807189,140.21,140.15,3.72958579]
[1633061457011,26.77023485,140.21,140.15,3.72958579]
[1633061458012,26.77023485,140.21,140.14,3.7977803]
[1633061459814,1.71807189,140.21,140.14,3.7977803]
[1633061461016,1.71807189,140.21,140.14,12.06076364]
[1633061462416,30.21600755,140.21,140.14,12.06076364]
[1633061462816,30.21600755,140.21,140.14,8.26298334]
[1633061465620,30.21600755,140.21,140.13,3.02]
[1633061467824,30.21600755,140.21,140.12,3.82603827]
[1633061468027,30.21600755,140.21,140.12,12.09019896]
[1633061472930,1.71807189,140.21,140.12,12.09019896]
[1633061473130,1.71807189,140.21,140.13,6.85214168]
[1633061473330,1.71807189,140.21,140.14,3.81401402]
[1633061473532,1.71807189,140.21,140.14,12.0766839]
[1633061475033,1.71807189,140.21,140.15,3.02]
[1633061475233,1.71807189,140.21,140.16,3.77465945]
[1633061475433,1.71807189,140.21,140.17,6.77607332]
[1633061475635,1.71807189,140.21,140.18,11.99902663]
[1633061475834,1.71807189,140.21,140.19,6.75047446]
[1633061476035,1.71807189,140.21,140.2,8.30188349]
[1633061476234,1.71807189,140.21,140.2,11.32188349]
[1633061476435,1.71807189,140.21,140.2,27.79788349]
[1633061477242,1.71807189,140.21,140.2,19.496]
[1633061477436,1.71807189,140.21,140.2,3.02]
[1633061479835,1.71807189,140.21,140.16,3.79152675]
[1633061480038,1.71807189,140.21,140.17,3.02]
[1633061480637,1.71807189,140.21,140.18,8.26027063]
[1633061480836,1.71807189,140.21,140.19,3.02]
[1633061481039,1.71807189,140.21,140.19,6.74644807]
[1633061481435,1.71807189,140.21,140.2,8.25897231]
[1633061481642,1.71807189,140.21,140.2,11.27897231]
[1633061482838,1.71807189,140.21,140.2,3.02]
[1633061483236,1.71807189,140.21,140.2,11.27917771]
[1633061484937,1.71807189,140.21,140.2,3.02]
[1633061485639,1.71807189,140.21,140.2,11.28108232]
[1633061486044,1.71807189,140.21,140.2,3.02]
[1633061487239,1.71807189,140.21,140.2,11.2808751]
[1633061487650,1.71807189,140.21,140.2,15.07480784]
[1633061490545,1.71807189,140.21,140.2,75.07480784]
[1633061490744,75.5917,140.32,140.2,75.07480784]
[1633061490943,75.5917,140.32,140.21,8.25992735]
[1633061491147,75.5917,140.32,140.22,6.87480826]
[1633061491344,75.5917,140.32,140.23,8.258872]
[1633061491544,75.5917,140.32,140.23,3.02]
[1633061493146,9.42787802,140.33,140.23,3.02]
[1633061496654,3.02,140.36,140.23,3.02]
[1633061497054,5.63542961,140.35,140.23,3.02]
[1633061497657,27.45520243,140.35,140.23,3.02]
[1633061499860,3.02,140.36,140.23,3.02]
[1633061500056,5.63542961,140.35,140.24,8.25854056]
[1633061500256,5.63542961,140.35,140.25,3.02]
[1633061500856,23.17348856,140.34,140.25,3.02]
[1633061503758,22.67348856,140.34,140.25,3.02]
[1633061504362,50.9326842,140.34,140.25,3.02]
[1633061504563,56.56811381,140.34,140.25,3.02]
[1633061506260,56.06811381,140.34,140.25,3.02]
[1633061508366,55.56811381,140.34,140.25,3.02]
[1633061511265,3.02,140.33,140.23,3.98008008]
[1633061511467,3.02,140.33,140.23,12.24081069]
[1633061511666,31.48684985,140.33,140.23,12.24081069]
[1633061511866,49.93777044,140.33,140.23,12.24081069]
[1633061512767,55.57320005,140.33,140.23,12.24081069]
[1633061512967,55.57320005,140.33,140.23,3.98008008]
[1633061513369,17.8354,140.32,140.23,3.98008008]
[1633061513568,28.20321397,140.31,140.23,3.98008008]
[1633061513767,62.09783922,140.31,140.23,3.98008008]
[1633061513968,90.56468907,140.31,140.22,3.99914371]
[1633061514167,18.45092059,140.3,140.22,3.99914371]
[1633061515570,24.0863502,140.3,140.22,3.99914371]
[1633061516170,24.0863502,140.3,140.23,4.03605718]
[1633061516571,18.45092059,140.3,140.23,4.03605718]
[1633061518474,24.0863502,140.3,140.23,4.03605718]
[1633061518874,24.0863502,140.3,140.22,4.06954318]
[1633061519075,24.0863502,140.3,140.21,8.26135569]
[1633061519076,24.0863502,140.3,140.23,4.06646331]
[1633061520575,28.25919564,140.29,140.23,4.06646331]
[1633061520776,26.16694538,140.28,140.21,12.34347102]
[1633061520978,31.80237499,140.28,140.21,4.08211533]
[1633061521175,3.56557085,140.23,140.21,4.08211533]
[1633061522975,3.56557085,140.23,140.2,4.07645007]
[1633061524879,3.56557085,140.23,140.19,4.06137694]
[1633061525481,3.56557085,140.23,140.2,4.05361323]
[1633061525680,3.56557085,140.23,140.19,4.05368462]
[1633061526483,3.56557085,140.23,140.2,4.08497767]
[1633061526880,3.56557085,140.23,140.19,4.08958682]
[1633061527081,3.56557085,140.23,140.21,8.26273802]
[1633061527279,3.56557085,140.23,140.2,4.08900151]
[1633061533981,3.56557085,140.23,140.19,12.39077455]
[1633061534184,3.56557085,140.23,140.19,4.12864016]
[1633061537485,3.56557085,140.23,140.18,4.12885942]
[1633061537685,3.56557085,140.23,140.19,4.12859004]
[1633061537888,3.56557085,140.23,140.2,4.12838305]
[1633061539989,3.56557085,140.23,140.19,4.12892887]
[1633061541493,3.56557085,140.23,140.2,4.12894754]
[1633061541688,3.56557085,140.23,140.16,14.49792184]
[1633061541689,3.56557085,140.23,140.21,4.12861803]
[1633061547899,3.56557085,140.23,140.22,4.0168651]
[1633061563433,3.56557085,140.23,140.21,3.97405061]
[1633061565534,3.56557085,140.23,140.22,3.97264088]
[1633061581951,3.56557085,140.23,140.21,0.0421776]
[1633061582151,3.02,140.36,140.26,15.05664703]
[1633061582352,3.02,140.4,140.3,3.95026653]
[1633061582550,9.42742109,140.34,140.3,3.95026653]
[1633061582752,9.42742109,140.34,140.31,6.96242309]
[1633061582950,9.42742109,140.34,140.32,8.25576776]
[1633061583154,24.7944691,140.39,140.32,12.12673544]
[1633061583354,3.02,140.42,140.35,1.93782205]
[1633061583552,3.02,140.42,140.36,1.93428668]
[1633061584152,3.02,140.42,140.35,1.93433578]
[1633061584354,27.50660489,140.41,140.34,1.93279207]
[1633061585353,27.50660489,140.41,140.33,1.93060621]
[1633061585753,27.50660489,140.41,140.32,1.92759304]
[1633061586352,27.50660489,140.41,140.31,4.99131207]
[1633061588356,27.50660489,140.41,140.31,3.0621776]
[1633061605575,27.50660489,140.41,140.31,5.05960062]
[1633061606675,27.50660489,140.41,140.32,1.99360644]
[1633061607775,27.50660489,140.41,140.33,2.00318126]
[1633061608377,27.50660489,140.41,140.34,2.00489381]
[1633061608574,27.50660489,140.41,140.35,2.0053009]
[1633061609178,27.50660489,140.41,140.34,2.00618031]
[1633061609676,27.50660489,140.41,140.37,2.00706975]
[1633061610277,30.52660489,140.41,140.36,2.01200808]
[1633061610480,32.00731849,140.41,140.36,2.01200808]
[1633061611080,55.01820979,140.41,140.36,2.01200808]
[1633061611280,60.6536394,140.41,140.36,2.01200808]
[1633061612382,9.42317349,140.4,140.36,2.01200808]
[1633061612684,24.75832429,140.39,140.36,2.01200808]
[1633061612884,25.37555767,140.38,140.36,2.01200808]
[1633061613486,25.37555767,140.38,140.35,2.03657684]
[1633061615484,5.63542961,140.37,140.35,2.03657684]
[1633061615683,5.63542961,140.37,140.34,2.05235371]
[1633061616286,5.63542961,140.37,140.33,2.05299625]
[1633061617287,8.65542961,140.37,140.33,2.05299625]
[1633061617486,33.42753747,140.37,140.32,2.05832064]
[1633061617688,5.63542961,140.36,140.32,2.05832064]
[1633061617887,26.94515281,140.35,140.32,2.05832064]
[1633061618489,32.58058242,140.35,140.32,2.05832064]
[1633061618894,35.60058242,140.35,140.32,2.05832064]
[1633061619888,61.3199651,140.35,140.32,2.05832064]
[1633061620089,61.3199651,140.35,140.31,2.06324198]
[1633061620590,61.3199651,140.35,140.3,2.06330766]
[1633061620992,90.07613675,140.35,140.3,2.06330766]
[1633061622294,18.61324661,140.34,140.3,2.06330766]
[1633061622492,18.61324661,140.34,140.29,2.0629375]
[1633061622693,29.04751851,140.32,140.29,2.0629375]
[1633061623094,34.68294812,140.32,140.29,2.0629375]
[1633061626095,34.68294812,140.32,140.28,2.05502024]
[1633061628199,34.68294812,140.32,140.27,2.06151224]
[1633061628401,34.68294812,140.32,140.28,2.05852683]
[1633061628599,34.68294812,140.32,140.27,2.06040911]
[1633061629300,34.68294812,140.32,140.28,2.05312339]
[1633061630501,34.68294812,140.32,140.27,2.05169458]
[1633061632605,34.68294812,140.32,140.28,2.04933066]
[1633061633005,34.68294812,140.32,140.27,2.04502797]
[1633061633409,34.68294812,140.32,140.28,2.04453003]
[1633061633807,34.68294812,140.32,140.27,2.04185281]
[1633061634007,34.68294812,140.32,140.28,2.04158917]
[1633061634209,34.68294812,140.32,140.27,2.04270148]
[1633061635406,59.17455302,140.32,140.27,2.04270148]
[1633061636609,59.17455302,140.32,140.28,2.04448604]
[1633061637606,3.72293225,140.31,140.28,2.04448604]
[1633061638006,9.35836186,140.31,140.28,2.04448604]
[1633061639210,9.35836186,140.31,140.27,2.04906959]
[1633061639410,9.35836186,140.31,140.28,2.05246044]
[1633061640009,56.55912341,140.32,140.28,2.05246044]
[1633061640209,5.63542961,140.31,140.28,2.05246044]
[1633061640412,3.72310817,140.32,140.3,2.0359674]
[1633061641412,3.72310817,140.32,140.31,2.01613722]
[1633061641810,3.72310817,140.32,140.28,4.03227443]
[1633061642014,3.72310817,140.32,140.31,2.00937786]
[1633061642311,3.72310817,140.32,140.28,4.03227443]
[1633061642514,58.40257552,140.35,140.29,4.00280615]
[1633061642714,28.75617165,140.35,140.34,1.99164789]
[1633061642914,28.75617165,140.35,140.33,1.99392479]
[1633061644816,69.37494739,140.37,140.33,1.99392479]
[1633061647220,63.73951778,140.37,140.33,1.99392479]
[1633061647619,63.73951778,140.37,140.34,1.98521259]
[1633061647821,54.04370818,140.37,140.34,1.98521259]
[1633061648418,54.04370818,140.37,140.33,1.9853434]
[1633061649022,5.63542961,140.36,140.32,1.99676774]
[1633061649422,26.99930945,140.36,140.32,1.99676774]
[1633061649621,26.99930945,140.36,140.31,2.00184239]
[1633061649828,5.63542961,140.35,140.31,2.00184239]
[1633061650022,29.28030466,140.34,140.31,2.00184239]
[1633061650222,54.99968734,140.34,140.31,2.00184239]
[1633061650422,60.63511695,140.34,140.3,2.00859671]
[1633061658251,18.61169836,140.33,140.3,2.00859671]
[1633061658652,24.24712797,140.33,140.3,2.00859671]
[1633061659650,24.24712797,140.33,140.29,2.01682486]
[1633061660051,24.24712797,140.33,140.28,2.01624192]
[1633061660550,49.98029423,140.33,140.28,2.01624192]
[1633061663152,78.74637873,140.33,140.28,2.01624192]
[1633061667458,63.85702004,140.33,140.28,2.01624192]
[1633061667658,60.13468037,140.33,140.3,2.01929715]
[1633061668260,60.13468037,140.33,140.29,2.02395336]
[1633061669962,60.13468037,140.33,140.28,2.03015045]
[1633061672966,60.13468037,140.33,140.29,2.02449963]
[1633061676173,60.13468037,140.33,140.27,8.25806676]
[1633061676174,54.49925076,140.33,140.31,2.01150666]
[1633061677574,490.98112699,140.34,140.32,2.00745001]
[1633061678177,490.98112699,140.34,140.33,1.99918007]
[1633061678375,490.98112699,140.34,140.3,3.99836015]
[1633061678578,9.42653339,140.35,140.33,2.00229236]
[1633061678775,33.23838341,140.36,140.33,2.00229236]
[1633061678974,33.23838341,140.36,140.34,1.99967963]
[1633061679374,33.23838341,140.36,140.33,2.00218571]
[1633061679576,33.23838341,140.36,140.33,1.00218571]
[1633061679773,38.87381302,140.36,140.33,1.00218571]
[1633061680174,5.63542961,140.36,140.33,1.00218571]
[1633061680374,37.42151411,140.38,140.31,3.98445566]
[1633061680576,31.7860845,140.38,140.32,3.95653608]
[1633061680774,31.7860845,140.38,140.33,3.95182616]
[1633061680975,31.7860845,140.38,140.32,3.96099906]
[1633061680976,34.40151411,140.38,140.32,3.96099906]
[1633061681179,29.52468047,140.37,140.33,3.94445256]
[1633061681380,29.52468047,140.37,140.31,3.98042537]
[1633061681575,35.16011008,140.37,140.31,3.98042537]
[1633061682376,35.16011008,140.37,140.3,12.23152277]
[1633061682577,5.63542961,140.36,140.3,12.23152277]
[1633061682777,21.49342961,140.36,140.3,12.23152277]
[1633061682978,52.39947895,140.36,140.28,12.31853126]
[1633061683178,34.40151411,140.35,140.28,0.0421776]
[1633061683579,31.36859587,140.34,140.28,0.0421776]
[1633061683779,60.13468037,140.34,140.28,0.0421776]
[1633061683979,26.99930945,140.33,140.28,0.0421776]
[1633061684180,28.72721549,140.32,140.28,0.0421776]
[1633061684378,34.3626451,140.32,140.28,0.0421776]
[1633061684578,5.63542961,140.31,140.28,0.0421776]
[1633061684978,27.88604934,140.3,140.28,0.0421776]
[1633061685179,44.22904934,140.3,140.27,0.0421776]
[1633061685378,5.63542961,140.29,140.27,0.0421776]